fUSD/lending_fUSD_20250523
["ID","MTS","AMOUNT","RATE_DAILY","PERIOD"]
[362100653,1747993848426,-420.0,0.00028057,4]
[362100654,1747993848436,-420.0,0.00028057,4]
[362100655,1747993848447,-420.0,0.00028057,4]
[362100656,1747993848456,-420.0,0.00028057,4]
[362100657,1747993848466,-420.0,0.00028057,4]
[362100658,1747993848475,-420.0,0.00028057,4]
[362100659,1747993848485,-420.0,0.00028057,4]
[362100660,1747993848494,-420.0,0.00028057,4]
[362100661,1747993848504,-420.0,0.00028057,4]
[362100662,1747993848513,-420.0,0.00028057,4]
[362100663,1747993848523,-420.0,0.00028057,4]
[362100664,1747993848532,-420.0,0.00028057,4]
[362100665,1747993848541,-420.0,0.00028057,4]
[362100666,1747993848551,-420.0,0.00028057,4]
[362100667,1747993848560,-420.0,0.00028057,4]
[362100668,1747993848570,-420.0,0.00028057,4]
[362100669,1747993848580,-420.0,0.00028057,4]
[362100670,1747993848589,-2320.6,0.00028057,4]
[362100671,1747993848598,-420.0,0.00028057,4]
[362100672,1747993848607,-420.0,0.00028057,4]
[362100673,1747993848617,-420.0,0.00028057,4]
[362100674,1747993848627,-7565.64279688,0.00028057,3]
[362100675,1747993848636,-68090.7851719,0.00028058,3]
[362100676,1747993848645,-500.0,0.00028058,2]
[362100677,1747993848655,-10718.37773761,0.00028061,2]
[362100678,1747993848664,-420.0,0.00028067,4]
[362100679,1747993848674,-420.0,0.00028067,4]
[362100680,1747993848683,-420.0,0.00028067,4]
[362100681,1747993848692,-420.0,0.00028067,4]
[362100682,1747993848702,-420.0,0.00028067,4]
[362100683,1747993848711,-526.02586294,0.00028067,4]
[362100684,1747993848721,-420.0,0.00028067,4]
[362100685,1747993848731,-420.0,0.00028067,4]
[362100686,1747993848740,-420.0,0.00028067,4]
[362100687,1747993848750,-420.0,0.00028067,4]
[362100688,1747993848760,-420.0,0.00028067,4]
[362100689,1747993848769,-420.0,0.00028067,4]
[362100690,1747993848779,-420.0,0.00028067,4]
[362100691,1747993848788,-420.0,0.00028067,4]
[362100692,1747993848800,-553.15,0.00028067,4]
[362100693,1747993848810,-508.85,0.00028067,4]
[362100694,1747993848819,-442.6,0.00028067,4]
[362100695,1747993848829,-420.0,0.00028067,4]
[362100696,1747993848839,-326.04634166,0.00028067,4]
[362100697,1747993848848,-228.06,0.00028067,4]
[362100698,1747993848858,-420.0,0.00028067,4]
[362100699,1747993848867,-420.0,0.00028067,4]
[362100700,1747993848877,-423.26,0.00028067,4]
[362100701,1747993848887,-420.0,0.00028067,4]
[362100702,1747993848897,-420.0,0.00028067,4]
[362100703,1747993848906,-420.0,0.00028067,4]
[362100704,1747993848916,-420.0,0.00028067,4]
[362100705,1747993848926,-420.0,0.00028067,4]
[362100706,1747993848936,-420.0,0.00028067,4]
[362100707,1747993848946,-420.0,0.00028067,4]
[362100708,1747993848955,-420.0,0.00028067,4]
[362100709,1747993848965,-420.0,0.00028067,4]
[362100710,1747993848976,-420.0,0.00028067,4]
[362100711,1747993848985,-420.0,0.00028067,4]
[362100712,1747993848998,-420.0,0.00028067,4]
[362100713,1747993849008,-420.0,0.00028067,4]
[362100714,1747993849017,-420.0,0.00028067,4]
[362100715,1747993849026,-420.0,0.00028067,4]
[362100716,1747993849036,-357.40262473,0.00028067,4]
[362100717,1747993849046,-420.0,0.00028067,4]
[362100718,1747993849056,-1000.0,0.00028067,2]
[362100719,1747993849066,-451.762012,0.00028067,4]
[362100720,1747993849077,-420.0,0.00028067,4]
[362100721,1747993849086,-420.0,0.00028067,4]
[362100722,1747993849096,-420.0,0.00028067,4]
[362100723,1747993849106,-420.0,0.00028067,4]
[362100724,1747993849116,-420.0,0.00028067,4]
[362100725,1747993849125,-420.0,0.00028067,4]
[362100726,1747993849135,-420.0,0.00028067,4]
[362100727,1747993849144,-420.0,0.00028067,4]
[362100728,1747993849154,-420.0,0.00028067,4]
[362100729,1747993849163,-432.35,0.00028067,4]
[362100730,1747993849173,-420.0,0.00028067,4]
[362100731,1747993849183,-227.29,0.00028067,4]
[362100732,1747993849193,-420.0,0.00028067,4]
[362100733,1747993849203,-420.0,0.00028067,4]
[362100734,1747993849212,-420.0,0.00028067,4]
[362100735,1747993849222,-420.0,0.00028067,4]
[362100736,1747993849231,-420.0,0.00028067,4]
[362100737,1747993849241,-420.0,0.00028067,4]
[362100738,1747993849250,-420.0,0.00028067,4]
[362100739,1747993849260,-420.0,0.00028067,4]
[362100740,1747993849270,-420.0,0.00028067,4]
[362100741,1747993849279,-420.0,0.00028067,4]
[362100742,1747993849289,-420.0,0.00028067,4]
[362100743,1747993849302,-460.89,0.00028067,4]
[362100744,1747993849311,-420.0,0.00028067,4]
[362100745,1747993849321,-420.0,0.00028067,4]
[362100746,1747993849331,-420.0,0.00028067,4]
[362100747,1747993849340,-420.0,0.00028067,4]
[362100748,1747993849350,-420.0,0.00028067,4]
[362100749,1747993849360,-420.0,0.00028067,4]
[362100750,1747993849370,-420.0,0.00028067,4]
[362100751,1747993849380,-420.0,0.00028067,4]
[362100752,1747993849390,-420.0,0.00028067,4]
[362100753,1747993849400,-420.0,0.00028067,4]
[362100754,1747993849409,-420.0,0.00028067,4]
[362100755,1747993849418,-420.0,0.00028067,4]
[362100756,1747993849427,-420.0,0.00028067,4]
[362100757,1747993849436,-420.0,0.00028067,4]
[362100758,1747993849446,-420.0,0.00028067,4]
[362100759,1747993849455,-4801.08,0.00028067,4]
[362100760,1747993849465,-420.0,0.00028067,4]
[362100761,1747993849474,-420.0,0.00028067,4]
[362100762,1747993849484,-420.0,0.00028067,4]
[362100763,1747993849493,-420.0,0.00028067,4]
[362100764,1747993849504,-420.0,0.00028067,4]
[362100765,1747993849514,-420.0,0.00028067,4]
[362100766,1747993849523,-420.0,0.00028067,4]
[362100767,1747993849533,-420.0,0.00028067,4]
[362100768,1747993849544,-420.0,0.00028067,4]
[362100769,1747993849553,-469.43,0.00028067,4]
[362100770,1747993849563,-420.0,0.00028067,4]
[362100771,1747993849572,-420.0,0.00028067,4]
[362100772,1747993849582,-420.0,0.00028067,4]
[362100773,1747993849591,-420.0,0.00028067,4]
[362100774,1747993849601,-420.0,0.00028067,4]
[362100775,1747993849609,-420.0,0.00028067,4]
[362100776,1747993849619,-1185.3,0.00028067,4]
[362100777,1747993849628,-553.1,0.00028067,4]
[362100778,1747993849638,-218.1720993,0.00028067,4]
[362100779,1747993849647,-420.0,0.00028067,4]
[362100780,1747993849656,-420.0,0.00028067,4]
[362100781,1747993849666,-865.73,0.00028067,4]
[362100782,1747993849675,-420.0,0.00028067,4]
[362100783,1747993849684,-550.31,0.00028067,4]
[362100784,1747993849693,-420.0,0.00028067,4]
[362100785,1747993849702,-807.96,0.00028067,4]
[362100786,1747993849712,-420.0,0.00028067,4]
[362100787,1747993849721,-420.0,0.00028067,4]
[362100788,1747993849731,-1014.38,0.00028067,4]
[362100789,1747993849740,-221.75,0.00028067,4]
[362100790,1747993849750,-420.0,0.00028067,4]
[362100791,1747993849759,-616.6,0.00028067,4]
[362100792,1747993849768,-420.0,0.00028067,4]
[362100793,1747993849777,-420.0,0.00028067,4]
[362100794,1747993849786,-2024.83,0.00028067,4]
[362100795,1747993849796,-420.0,0.00028067,4]
[362100796,1747993849806,-565.33,0.00028067,4]
[362100797,1747993849815,-737.87,0.00028067,4]
[362100798,1747993849825,-420.0,0.00028067,4]
[362100799,1747993849835,-420.0,0.00028067,4]
[362100800,1747993849844,-1361.01,0.00028067,4]
[362100801,1747993849854,-420.0,0.00028067,4]
[362100802,1747993849863,-420.0,0.00028067,4]
[362100803,1747993849873,-420.0,0.00028067,4]
[362100804,1747993849882,-420.0,0.00028067,4]
[362100805,1747993849892,-420.0,0.00028067,4]
[362100806,1747993849902,-420.0,0.00028067,4]
[362100807,1747993849912,-420.0,0.00028067,4]
[362100808,1747993849921,-255.25922858,0.00028068,4]
[362100809,1747993849930,-529.56714005,0.00028068,4]
[362100810,1747993849940,-327.92737001,0.00028068,4]
[362100811,1747993849949,-420.0,0.00028068,4]
[362100812,1747993849960,-429.02293534,0.00028068,4]
[362100813,1747993849969,-420.0,0.00028068,4]
[362100814,1747993849979,-420.0,0.00028068,4]
[362100815,1747993849988,-420.0,0.00028068,4]
[362100816,1747993850002,-420.0,0.00028068,4]
[362100817,1747993850011,-433.91315674,0.00028068,4]
[362100818,1747993850020,-427.66749084,0.00028068,4]
[362100819,1747993850030,-430.0996623,0.00028068,4]
[362100820,1747993850042,-420.0,0.00028068,4]
[362100821,1747993850051,-420.0,0.00028068,4]
[362100822,1747993850060,-424.59154127,0.00028068,4]
[362100823,1747993850071,-420.0,0.00028068,4]
[362100824,1747993850080,-420.0,0.00028068,4]
[362100825,1747993850090,-420.0,0.00028068,4]
[362100826,1747993850099,-420.0,0.00028068,4]
[362100827,1747993850109,-420.0,0.00028068,4]
[362100828,1747993850119,-420.0,0.00028068,4]
[362100829,1747993850128,-420.0,0.00028068,4]
[362100830,1747993850138,-420.0,0.00028068,4]
[362100831,1747993850147,-420.0,0.00028068,4]
[362100832,1747993850158,-420.0,0.00028068,4]
[362100833,1747993850168,-420.0,0.00028068,4]
[362100834,1747993850177,-420.0,0.00028068,4]
[362100835,1747993850187,-420.0,0.00028068,4]
[362100836,1747993850196,-420.0,0.00028068,4]
[362100837,1747993850206,-420.0,0.00028068,4]
[362100838,1747993850215,-420.0,0.00028068,4]
[362100839,1747993850226,-420.0,0.00028068,4]
[362100840,1747993850235,-420.0,0.00028068,4]
[362100841,1747993850244,-426.5085988,0.00028068,4]
[362100842,1747993850254,-420.0,0.00028068,4]
[362100843,1747993850263,-500.51,0.00028068,4]
[362100844,1747993850273,-427.46985944,0.00028068,4]
[362100845,1747993850282,-420.0,0.00028068,4]
[362100846,1747993850293,-420.0,0.00028068,4]
[362100847,1747993850302,-420.0,0.00028068,4]
[362100848,1747993850313,-153.4533798,0.00028068,4]
[362100849,1747993850323,-420.0,0.00028068,4]
[362100850,1747993850332,-420.0,0.00028068,4]
[362100851,1747993850342,-420.0,0.00028068,4]
[362100852,1747993850351,-1013.80687303,0.00028068,30]
[362100853,1747993850361,-173.68,0.00028068,4]
[362100854,1747993850371,-424.88637334,0.00028068,4]
[362100855,1747993850380,-420.0,0.00028068,4]
[362100856,1747993850389,-420.0,0.00028068,4]
[362100857,1747993850398,-420.0,0.00028068,4]
[362100858,1747993850407,-420.0,0.00028068,4]
[362100859,1747993850418,-420.0,0.00028068,4]
[362100860,1747993850429,-420.0,0.00028068,4]
[362100861,1747993850439,-420.0,0.00028068,4]
[362100862,1747993850449,-5.86719749,0.00028068,4]
[362100863,1747993850569,-414.13280251,0.00028068,4]
[362100864,1747993850579,-97.86204884,0.00028068,4]
[362100865,1747993850590,-322.13795116,0.00028068,4]
[362100866,1747993850599,-70.62504884,0.00028068,4]
[362100867,1747993850626,-349.37495116,0.00028068,4]
[362100868,1747993850636,-420.0,0.00028068,4]
[362100869,1747993850645,-420.0,0.00028068,4]
[362100870,1747993850654,-420.0,0.00028068,4]
[362100871,1747993850663,-420.0,0.00028068,4]
[362100872,1747993850673,-420.0,0.00028068,4]
[362100873,1747993850682,-8.30444771,0.00028068,4]
[362100874,1747993850694,-417.01941524,0.00028068,4]
[362100875,1747993850704,-423.58797875,0.00028068,4]
[362100876,1747993850713,-276.76350304,0.00028068,4]
[362100877,1747993850725,-423.45202607,0.00028068,4]
[362100878,1747993850735,-470.28,0.00028068,4]
[362100879,1747993850744,-420.0,0.00028068,4]
[362100880,1747993850753,-420.0,0.00028068,4]
[362100881,1747993850762,-420.0,0.00028068,4]
[362100882,1747993850772,-420.0,0.00028068,4]
[362100883,1747993850782,-420.0,0.00028068,4]
[362100884,1747993850791,-420.0,0.00028068,4]
[362100885,1747993850801,-420.0,0.00028068,4]
[362100886,1747993850811,-420.0,0.00028068,4]
[362100887,1747993850821,-420.0,0.00028068,4]
[362100888,1747993850831,-420.0,0.00028068,4]
[362100889,1747993850840,-420.0,0.00028068,4]
[362100890,1747993850849,-503.27,0.00028068,4]
[362100891,1747993850859,-420.0,0.00028068,4]
[362100892,1747993850869,-431.17,0.00028068,4]
[362100893,1747993850879,-420.0,0.00028068,4]
[362100894,1747993850888,-420.0,0.00028068,4]
[362100895,1747993850898,-420.0,0.00028068,4]
[362100896,1747993850908,-420.0,0.00028068,4]
[362100897,1747993850917,-420.0,0.00028068,4]
[362100898,1747993850927,-522.39,0.00028068,4]
[362100899,1747993850937,-483.87,0.00028068,4]
[362100900,1747993850947,-420.0,0.00028068,4]
[362100901,1747993850956,-420.0,0.00028068,4]
[362100902,1747993850966,-420.0,0.00028068,4]
[362100903,1747993850975,-423.60815312,0.00028068,4]
[362100904,1747993850985,-420.0,0.00028068,4]
[362100905,1747993850998,-420.0,0.00028068,4]
[362100906,1747993851007,-420.0,0.00028068,4]
[362100907,1747993851018,-420.0,0.00028068,4]
[362100908,1747993851027,-420.0,0.00028068,4]
[362100909,1747993851037,-469.16,0.00028068,4]
[362100910,1747993851046,-420.0,0.00028068,4]
[362100911,1747993851056,-420.0,0.00028068,4]
[362100912,1747993851067,-420.0,0.00028068,4]
[362100913,1747993851077,-335.07575181,0.00028068,4]
[362100914,1747993851087,-420.0,0.00028068,4]
[362100915,1747993851097,-420.0,0.00028068,4]
[362100916,1747993851106,-428.36652815,0.00028068,4]
[362100917,1747993851115,-420.0,0.00028068,4]
[362100918,1747993851124,-420.0,0.00028068,4]
[362100919,1747993851134,-420.0,0.00028068,4]
[362100920,1747993851143,-420.0,0.00028068,2]
[362100921,1747993851152,-420.0,0.00028068,4]
[362100922,1747993851162,-420.0,0.00028068,4]
[362100923,1747993851171,-420.0,0.00028068,4]
[362100924,1747993851180,-420.0,0.00028068,4]
[362100925,1747993851190,-420.0,0.00028068,4]
[362100926,1747993851200,-426.69434571,0.00028068,4]
[362100927,1747993851210,-420.0,0.00028068,4]
[362100928,1747993851219,-546.61,0.00028068,4]
[362100929,1747993851229,-420.0,0.00028068,4]
[362100930,1747993851239,-385.99702393,0.00028068,4]
[362100931,1747993851248,-420.0,0.00028068,4]
[362100932,1747993851258,-364.63,0.00028068,4]
[362100933,1747993851267,-418.8835825,0.00028068,4]
[362100934,1747993851278,-420.0,0.00028068,4]
[362100935,1747993851288,-420.0,0.00028068,4]
[362100936,1747993851298,-548.16413218,0.00028068,4]
[362100937,1747993851308,-420.0,0.00028068,4]
[362100938,1747993851317,-447.66,0.00028068,4]
[362100939,1747993851327,-420.0,0.00028068,4]
[362100940,1747993851336,-420.0,0.00028068,4]
[362100941,1747993851347,-420.0,0.00028068,4]
[362100942,1747993851356,-424.92142201,0.00028068,4]
[362100943,1747993851366,-565.96,0.00028068,4]
[362100944,1747993851375,-420.0,0.00028068,4]
[362100945,1747993851384,-179.62389265,0.00028068,4]
[362100946,1747993851394,-460.25,0.00028068,4]
[362100947,1747993851403,-420.0,0.00028068,4]
[362100948,1747993851413,-455.25,0.00028068,4]
[362100949,1747993851422,-420.0,0.00028068,4]
[362100950,1747993851431,-420.0,0.00028068,4]
[362100951,1747993851442,-420.0,0.00028068,4]
[362100952,1747993851451,-203.19878885,0.00028068,4]
[362100953,1747993851464,-216.80121115,0.00028068,4]
[362100954,1747993851474,-420.0,0.00028068,4]
[362100955,1747993851484,-420.0,0.00028068,4]
[362100956,1747993851493,-543.23,0.00028068,4]
[362100957,1747993851504,-420.0,0.00028068,4]
[362100958,1747993851514,-420.0,0.00028068,4]
[362100959,1747993851523,-420.0,0.00028068,4]
[362100960,1747993851533,-420.0,0.00028068,4]
[362100961,1747993851542,-487.25,0.00028068,4]
[362100962,1747993851552,-275.99198317,0.00028068,4]
[362100963,1747993851562,-420.0,0.00028068,4]
[362100964,1747993851572,-423.00030104,0.00028068,4]
[362100965,1747993851581,-425.69594091,0.00028068,4]
[362100966,1747993851591,-420.0,0.00028068,4]
[362100967,1747993851600,-420.0,0.00028068,4]
[362100968,1747993851610,-420.0,0.00028068,4]
[362100969,1747993851619,-420.0,0.00028068,4]
[362100970,1747993851629,-420.0,0.00028068,4]
[362100971,1747993851638,-420.0,0.00028068,4]
[362100972,1747993851648,-420.0,0.00028068,4]
[362100973,1747993851657,-420.0,0.00028068,4]
[362100974,1747993851667,-435.4,0.00028068,4]
[362100975,1747993851677,-420.0,0.00028068,4]
[362100976,1747993851686,-420.0,0.00028068,4]
[362100977,1747993851696,-420.0,0.00028068,4]
[362100978,1747993851706,-427.04916815,0.00028068,4]
[362100979,1747993851715,-423.20073091,0.00028068,4]
[362100980,1747993851725,-430.54620442,0.00028068,4]
[362100981,1747993851735,-420.0,0.00028068,4]
[362100982,1747993851745,-420.0,0.00028068,4]
[362100983,1747993851754,-462.17,0.00028068,4]
[362100984,1747993851763,-420.0,0.00028068,4]
[362100985,1747993851773,-420.0,0.00028068,4]
[362100986,1747993851783,-420.0,0.00028068,4]
[362100987,1747993851793,-315.36825783,0.00028068,4]
[362100988,1747993851802,-420.0,0.00028068,4]
[362100989,1747993851812,-420.0,0.00028068,4]
[362100990,1747993851822,-420.0,0.00028068,4]
[362100991,1747993851832,-225.14774825,0.00028068,4]
[362100992,1747993851848,-194.85225175,0.00028068,4]
[362100993,1747993851858,-429.78375168,0.00028068,4]
[362100994,1747993851867,-425.51501968,0.00028068,4]
[362100995,1747993851877,-420.0,0.00028068,4]
[362100996,1747993851887,-420.0,0.00028068,4]
[362100997,1747993851897,-420.0,0.00028068,4]
[362100998,1747993851907,-420.0,0.00028068,4]
[362100999,1747993851917,-420.0,0.00028068,4]
[362101000,1747993851926,-426.20558562,0.00028068,4]
[362101001,1747993851936,-497.07,0.00028068,4]
[362101002,1747993851946,-247.39888123,0.00028068,4]
[362101003,1747993851974,-180.16446521,0.00028068,4]
[362101004,1747993851985,-420.0,0.00028068,4]
[362101005,1747993851996,-12.73553589,0.00028068,4]
[362101006,1747993868131,250.0,0.00015,2]
[362101007,1747993869205,300.0,0.00017,2]
[362101008,1747994288102,170.12,0.00026984,120]
[362101010,1747994467024,200.8,0.00013699,2]
[362101011,1747994508871,174.3561184,0.00017,2]
[362101012,1747994809032,151.0,0.00017,2]
[362101013,1747994840226,-350.0,0.00019,2]
[362101014,1747994840247,-268.52779771,0.000197,2]
[362101015,1747994840268,-1158.17766562,0.0002,2]
[362101016,1747994949140,4000.0,0.000274,120]
[362101030,1747995031399,-216.06792533,0.000199,2]
[362101031,1747995031408,-839.58672103,0.0002,2]
[362101032,1747995031559,-315.65679212,0.0002,2]
[362101093,1747995037464,-2684.5,0.0002,2]
[362101094,1747995037519,-1051.7607918,0.0002,2]
[362101095,1747995037529,-200.0,0.00020094,2]
[362101096,1747995037539,-200.8,0.00020187,2]
[362101097,1747995037550,-200.0,0.000209,2]
[362101098,1747995037561,-160.06,0.0002091,2]
[362101099,1747995037570,-400.0,0.00021,2]
[362101100,1747995037580,-250.0,0.0002189,2]
[362101101,1747995037589,-250.0,0.00022,2]
[362101102,1747995037598,-200.0,0.00022,2]
[362101103,1747995037608,-579.75196372,0.000229,8]
[362101104,1747995037617,-887.0,0.00023589,2]
[362101105,1747995037627,-579.7519635,0.0002359,9]
[362101106,1747995037637,-579.7519635,0.00024279,10]
[362101107,1747995037646,-380.0,0.0002463,2]
[362101108,1747995037655,-579.7519635,0.00024969,12]
[362101109,1747995037665,-786.17,0.00025163,2]
[362101110,1747995037674,-579.7519635,0.00025659,13]
[362101111,1747995037684,-251.37877351,0.00026,2]
[362101112,1747995037693,-579.7519635,0.00026348,14]
[362101113,1747995037702,-50.34446221,0.00026666,2]
[362101114,1747995037714,-2800.80192653,0.00026666,2]
[362101115,1747995037725,-592.8,0.00026666,2]
[362101116,1747995037736,-592.89361126,0.00026666,2]
[362101117,1747995037747,-194.7863848,0.00026676,2]
[362101330,1747995040052,-6.0136152,0.00026676,2]
[362101332,1747995040062,-150.0,0.00026703,7]
[362101334,1747995040071,-181.79,0.00026906,2]
[362101336,1747995040081,-179.7695246,0.00026929,2]
[362101338,1747995040090,-207.4,0.00026929,2]
[362101340,1747995040100,-228.48069974,0.00026929,2]
[362101342,1747995040110,-668.65185757,0.00026929,2]
[362101344,1747995040120,-668.65185757,0.00026929,2]
[362101346,1747995040129,-1000.0,0.00026945,2]
[362101348,1747995040140,-165.08,0.00026954,2]
[362101350,1747995040150,-159.8,0.00026983,2]
[362101352,1747995040161,-167.0,0.00027,7]
[362101354,1747995040174,-579.7519635,0.00027038,16]
[362101356,1747995040184,-156.61,0.00027239,2]
[362101358,1747995040194,-156.61,0.00027258,2]
[362101360,1747995040204,-156.61,0.00027278,2]
[362101362,1747995040214,-156.61,0.00027297,2]
[362101364,1747995040224,-156.61,0.00027317,2]
[362101366,1747995040234,-156.61,0.00027336,2]
[362101368,1747995040245,-156.61,0.00027355,2]
[362101370,1747995040255,-156.61,0.00027375,2]
[362101372,1747995040265,-150.850086,0.00027397,4]
[362101374,1747995040275,-2156.45750462,0.00027397,4]
[362101377,1747995040287,-1961.48164865,0.00027397,4]
[362101578,1747995042515,-18211.90004057,0.00027397,4]
[362101579,1747995042526,-7705.80501196,0.00027397,4]
[362101580,1747995042572,-3546.9455872,0.00027397,4]
[362101581,1747995042582,-1045.353409,0.00027397,4]
[362101582,1747995042592,-151.370236,0.00027397,4]
[362101583,1747995042601,-150.0,0.00027397,2]
[362101584,1747995042610,-359.22,0.00027397,2]
[362101585,1747995042620,-786.17,0.00027427,2]
[362101586,1747995042629,-693.3919763,0.00027477,2]
[362101587,1747995042638,-226.31,0.0002769,2]
[362101588,1747995042648,-579.7519635,0.00027728,17]
[362101589,1747995042658,-400.0,0.000278,10]
[362101590,1747995042667,-900.0,0.000279,10]
[362101591,1747995042676,-303.25,0.00027945,2]
[362101592,1747995042685,-361.53,0.00027945,2]
[362101593,1747995042694,-561.0,0.0002795,4]
[362101594,1747995042704,-649.185,0.00027957,2]
[362101595,1747995042713,-226.988,0.00027957,2]
[362101596,1747995042722,-5649.63137271,0.00027976,2]
[362101668,1747995045522,-509.78997743,0.00027976,2]
[362101676,1747995045734,-519.65610048,0.00027976,2]
[362101677,1747995045945,-1895.62473954,0.00027976,2]
[362101678,1747995045955,-506.55852669,0.00027998,2]
[362101679,1747995045965,-500.0,0.00027998,2]
[362101680,1747995045975,-500.0,0.00027998,2]
[362101681,1747995045985,-500.0,0.00027998,2]
[362101682,1747995045994,-500.0,0.00027998,2]
[362101683,1747995046003,-218.95309792,0.00027998,2]
[362101684,1747995046013,-1362.0,0.00028,2]
[362101685,1747995046023,-1362.0,0.00028,2]
[362101686,1747995046033,-1362.0,0.00028,2]
[362101687,1747995046042,-1362.0,0.00028,2]
[362101688,1747995046051,-1362.0,0.00028,2]
[362101689,1747995046061,-1362.0,0.00028,2]
[362101690,1747995046070,-1362.0,0.00028,2]
[362101691,1747995046080,-1362.0,0.00028,2]
[362101692,1747995046090,-1362.0,0.00028,2]
[362101693,1747995046099,-1362.0,0.00028,2]
[362101694,1747995046109,-719.04747942,0.00028025,2]
[362101695,1747995046120,-420.0,0.00028056,4]
[362101696,1747995046129,-5.54664831,0.00028057,4]
[362101697,1747995046141,-414.45335169,0.00028057,4]
[362101698,1747995046151,-318.83664731,0.00028057,4]
[362101718,1747995530530,217.28,0.00027163,120]
[362101720,1747995631370,1000.0,0.000274,120]
[362101721,1747995673642,250.0,0.00015,2]
[362101723,1747995698310,170.68,0.00013699,2]
[362101727,1747996029149,-170.68,0.00020187,2]
[362101728,1747996029174,-2055.0886041,0.00024,5]
[362101729,1747996032138,-1256.71991692,0.00024,5]
[362101730,1747996032159,-151.0,0.0002436,2]
[362101731,1747996032179,-242.53873725,0.00025,3]
[362101732,1747996032199,-199.58561333,0.00025302,2]
[362101748,1747996231748,-207.0,0.00024807,2]
[362101749,1747996231759,-465.089998,0.00024874,2]
[362101750,1747996231803,-232.480002,0.00024874,2]
[362101751,1747996231813,-2000.0,0.00026,30]
[362101752,1747996231823,-170.68,0.00026676,2]
[362101753,1747996231832,-592.89,0.00026739,2]
[362101754,1747996231842,-697.57,0.00027138,2]
[362101755,1747996231852,-150.0,0.00027154,7]
[362101756,1747996231862,-84.72746439,0.00027172,2]
[362101757,1747996231876,-915.27253561,0.00027172,2]
[362101758,1747996231886,-11.48140446,0.00027181,2]
[362101759,1747996231919,-188.51859554,0.00027181,2]
[362101760,1747996231928,-300.0,0.00027269,2]
[362101761,1747996231938,-46.10191506,0.0002727,2]
[362102286,1747996237770,-300.0,0.00027269,2]
[362102288,1747996237780,-111.27808494,0.0002727,2]
[362102289,1747996237791,-150.99,0.0002727,2]
[362102291,1747996237801,-430.12331706,0.0002727,2]
[362102294,1747996237813,-260.88826269,0.0002727,2]
[362102306,1747996237927,-638.40842025,0.0002727,2]
[362102308,1747996237936,-1123.05,0.0002727,2]
[362102310,1747996237946,-2191.19,0.0002727,20]
[362102312,1747996237956,-150.99,0.0002727,2]
[362102313,1747996237965,-999.99,0.0002727,2]
[362102315,1747996237974,-255.4,0.0002727,2]
[362102317,1747996237984,-9190.43,0.0002727,2]
[362102319,1747996237993,-391.4,0.0002727,2]
[362102321,1747996238002,-299.99,0.0002727,12]
[362102323,1747996238011,-251.28,0.0002727,2]
[362102325,1747996238022,-9999.99,0.0002727,2]
[362102327,1747996238032,-1496.45995404,0.0002727,2]
[362102490,1747996239781,-744.15004596,0.0002727,2]